Workbook

Sheet Sheet1
A1: =RAND() -> 0.2709237425 | B1: =getformula(A1) -> <-- =RAND() | D1: Bins | E1: Frequency
A2: =RAND() -> 0.8719928521 | D2: 0.1 | E2: =FREQUENCY(A:A,D2:D11) -> 6 | F2: =getformula(E2) -> <-- {=FREQUENCY(A:A,D2:D11)}
A3: 0.4305093899 | D3: 0.2 | E3: 5
A4: 0.3524323145 | D4: 0.3 | E4: 10
A5: 0.4658477299 | D5: 0.4 | E5: 10
A6: 0.8323343264 | D6: 0.5 | E6: 7
A7: 0.3396534252 | D7: 0.6 | E7: 13
A8: 0.8939791054 | D8: 0.7 | E8: 13
A9: 0.2075237029 | D9: 0.8 | E9: 11
A10: 0.5215562059 | D10: 0.9 | E10: 14
A11: 0.7819698172 | D11: 1 | E11: 11
A12: 0.446680391
A13: 0.2982558994
A14: 0.009146141266
A15: =RAND() -> 0.5926456226
A16: =RAND() -> 0.8155030997
A17: 0.6739005986
A18: 0.5292465606
A19: 0.820225484
A20: 0.7253587816
A21: 0.2410069159
A22: 0.6123027546
A23: 0.4206098662
A24: 0.7458588015
A25: 0.2816844245
A26: 0.5037599521
A27: 0.3614160464
A28: 0.996177341
A29: 0.6326267115
A30: 0.7648012631
A31: 0.5485108409
A32: 0.8065896197
A33: 0.6012463966
A34: 0.1521850092
A35: 0.4470571745
A36: 0.8154441516
A37: 0.004447225401
A38: 0.4491884418
A39: 0.9303600233
A40: 0.5760755367
A41: 0.7413452128
A42: 0.545317535
A43: 0.2970081961
A44: 0.8892900243
A45: 0.5525493806
A46: 0.6436196009
A47: 0.9034926119
A48: 0.7985919381
A49: 0.190888418
A50: 0.149506489
A51: 0.7171910907
A52: 0.5180096335
A53: 0.6994219122
A54: 0.8398555813
A55: 0.7372360809
A56: 0.8265060405
A57: 0.7879012305
A58: 0.8474641025
A59: 0.9435190002
A60: 0.4114594928
A61: 0.00951327031
A62: 0.3811934684
A63: 0.9961879274
A64: 0.7553584722
A65: 0.2049613894
A66: 0.3114606753
A67: 0.9895656382
A68: =RAND() -> 0.3556914797
A69: 0.8775774026
A70: 0.6187674437
A71: 0.09155717521
A72: 0.5702751806
A73: 0.272937615
A74: 0.2311584728
A75: 0.7327125038
A76: 0.04546923407
A77: 0.1777789173
A78: 0.6742581259
A79: 0.3101827756
A80: =RAND() -> 0.9066303657
A81: 0.5505764131
A82: 0.371252228
A83: 0.3776453708
A84: 0.8660699217
A85: 0.06775287868
A86: 0.6354275349
A87: 0.6637102335
A88: 0.9154840701
A89: 0.9681691449
A90: 0.5515684888
A91: 0.9644091572
A92: 0.6431722539
A93: 0.3550947519
A94: 0.6915763669
A95: 0.5927910171
A96: 0.1842721975
A97: 0.2839299626
A98: 0.643467067
A99: 0.8897988423
A100: 0.9765358997

Sheet Sheet2
A1: 0.4002322385 | C1: Mean | D1: =AVERAGE(A1:A1000) -> 0.004074147455 | E1: =getformula(D1) -> <-- =AVERAGE(A1:A1000) | H1: Bin | I1: Frequency
A2: -2.091310307 | C2: St Dev | D2: =_xlfn.STDEV.S(A1:A1000) -> 1.006208947 | E2: =getformula(D2) -> <-- =STDEV.S(A1:A1000) | H2: -3.147288226 | I2: 1
A3: 0.1115745363 | H3: -2.944237372 | I3: 0
A4: -0.8130109563 | H4: -2.741186519 | I4: 0
A5: 0.6258881058 | H5: -2.538135666 | I5: 6
A6: -0.323925633 | H6: -2.335084813 | I6: 1
A7: 2.890592441 | H7: -2.132033959 | I7: 9
A8: -0.2000308541 | H8: -1.928983106 | I8: 9
A9: 2.567139745 | H9: -1.725932253 | I9: 18
A10: -1.767461981 | H10: -1.522881399 | I10: 20
A11: -0.7335711416 | H11: -1.319830546 | I11: 26
A12: -0.4893536243 | H12: -1.116779693 | I12: 39
A13: 0.5075435183 | H13: -0.9137288397 | I13: 44
A14: -0.3372565516 | H14: -0.7106779864 | I14: 56
A15: -0.4794605957 | H15: -0.5076271332 | I15: 77
A16: 0.7799189916 | H16: -0.3045762799 | I16: 79
A17: -0.5297715688 | H17: -0.1015254266 | I17: 85
A18: 1.867510946 | H18: 0.1015254266 | I18: 87
A19: 1.326611709 | H19: 0.3045762799 | I19: 73
A20: 1.383309609 | H20: 0.5076271332 | I20: 73
A21: 1.162422905 | H21: 0.7106779864 | I21: 54
A22: -1.060027444 | H22: 0.9137288397 | I22: 49
A23: -1.582261575 | H23: 1.116779693 | I23: 47
A24: -0.8618962966 | H24: 1.319830546 | I24: 52
A25: 0.2882495664 | H25: 1.522881399 | I25: 31
A26: 2.795131877 | H26: 1.725932253 | I26: 21
A27: -2.211836545 | H27: 1.928983106 | I27: 10
A28: 0.487628995 | H28: 2.132033959 | I28: 14
A29: -0.4614298632 | H29: 2.335084813 | I29: 5
A30: -0.04120579433 | H30: 2.538135666 | I30: 6
A31: -0.8587949196 | H31: 2.741186519 | I31: 4
A32: 0.7908533917 | H32: 2.944237372 | I32: 2
A33: -0.2455180947 | H33: More | I33: 2
A34: -0.8644497029
A35: 1.846487976
A36: -0.0471027306
A37: -1.198193331
A38: -1.063117452
A39: -0.2644856067
A40: 0.6354071047
A41: 0.2384285835
A42: -0.3633681445
A43: 0.3136233317
A44: 2.009965101
A45: 0.01510898073
A46: 0.05706056072
A47: -1.838552635
A48: -0.7498874766
A49: 0.6903974281
A50: -0.01533862815
A51: 1.036310096
A52: 1.477769729
A53: -1.063926902
A54: 1.56173428
A55: -0.4221260497
A56: 2.366759873
A57: -0.2664660315
A58: 1.306054855
A59: -0.7002358871
A60: -1.685662028
A61: -0.1463649824
A62: 0.1316891485
A63: 0.4113621799
A64: 0.05177412277
A65: -0.277102572
A66: 1.376374712
A67: 1.629182407
A68: -0.02582055458
A69: -1.50712367
A70: 1.177895683
A71: 1.148257525
A72: 1.149887794
A73: 0.09473183127
A74: -0.7542530511
A75: 0.3360423761
A76: -2.228007361
A77: 0.1175044417
A78: 2.001952453
A79: 1.236221578
A80: -1.158673513
A81: -0.7577136785
A82: 1.145451733
A83: 0.1224350399
A84: 0.5464812602
A85: -2.076549208
A86: -0.8106712812
A87: -0.5118977242
A88: -0.2216984285
A89: -0.7252867817
A90: 1.007424544
A91: 0.7024868864
A92: -0.2925582976
A93: -1.38032874
A94: 0.4268974862
A95: -1.003872967
A96: 0.4027197065
A97: 0.4428738976
A98: -0.5884498933
A99: -0.1137300387
A100: 0.2004208
A101: 0.8340589375
A102: -0.8541587704
A103: 1.011371751
A104: 1.05788331
A105: -2.31915692
A106: -0.4243020157
A107: -0.2008891897
A108: -0.9237783161
A109: 0.7937865121
A110: -1.462440196
A111: -1.165738013
A112: -1.839380275
A113: -0.6016898624
A114: 0.402801561
A115: 0.2860974746
A116: 0.4476885351
A117: -0.04763819561
A118: -0.6274706266
A119: -0.6415041298
A120: 0.8708025234
A121: -0.4359651484
A122: -0.0934255695
A123: 1.117878128
A124: -1.725629772
A125: -0.04074649951
A126: -0.3439049578
A127: -0.4958303634
A128: 0.2062779458
A129: -0.4486196303
A130: -0.5786546353
A131: 0.6312006917
A132: -0.6661343832
A133: -1.600164978
A134: -1.218352281
A135: -0.01288981366
A136: -0.3705690688
A137: -0.7463461316
A138: -0.5506603884
A139: -0.1658804649
A140: -0.2829108325
A141: 0.6005916475
A142: 0.1320745469
A143: 0.6257948826
A144: -0.9437712833
A145: 0.005087485988
A146: -0.539832854
A147: 1.486951078
A148: -0.237328095
A149: -1.76382855
A150: 0.9656105249
A151: -0.5637957656
A152: -0.8984056876
A153: 1.395360414
A154: -0.4728622116
A155: -1.014311692
A156: 0.03056584319
A157: -0.2311946901
A158: 0.2594970283
A159: 0.04534058462
A160: -0.4078685834
A161: -0.06840423339
A162: 0.9619589036
A163: -0.4599837666
A164: -0.9626887731
A165: -1.219959813
A166: -1.628891368
A167: 0.8376377991
A168: 0.5558320026
A169: -0.1569674168
A170: 0.2512774699
A171: -0.2569663593
A172: 0.5766651157
A173: -0.2584692993
A174: 0.1817238626
A175: 0.05315314411
A176: -0.2128467713
A177: 0.09903601494
A178: -1.044061264
A179: 0.4579442248
A180: 0.3700768048
A181: 0.6217987902
A182: -1.739354047
A183: -0.692048161
A184: -0.8278993846
A185: -0.6483787729
A186: 1.128371423
A187: -0.03401055437
A188: -0.1370926839
A189: -1.009589141
A190: 0.6181835488
A191: 1.808698471
A192: 0.3524382919
A193: -0.6604136615
A194: 0.6513084827
A195: -1.93210326
A196: -1.081880328
A197: 0.7495850696
A198: 1.032913133
A199: 0.0233717401
A200: 1.349458216
... 800 more rows

Sheet Sheet3
A1: X | B1: 1.5 | I1: Bins | J1: Frequency
A2: Norm.s.Dist | B2: =_xlfn.NORM.S.DIST(B1,1) -> 0.9331927987 | C2: =getformula(B2) -> <-- =NORM.S.DIST(B1,1) | I2: -3 | J2: =FREQUENCY(A8:A1681,I2:I14) -> 1
I3: -2.5 | J3: 8
A4: Prob | B4: 0.6 | I4: -2 | J4: 27
A5: X | B5: =_xlfn.NORM.S.INV(B4) -> 0.2533471031 | C5: =getformula(B5) -> <-- =NORM.S.INV(B4) | I5: -1.5 | J5: 84
I6: -1 | J6: 159
I7: -0.5 | J7: 255
A8: =_xlfn.NORM.S.INV(RAND()) -> 0.6669812538 | C8: Mean | D8: =AVERAGE(A8:A1681) -> -0.002136214172 | E8: =getformula(D8) -> <-- =AVERAGE(A8:A1681) | I8: 0 | J8: 297
A9: =_xlfn.NORM.S.INV(RAND()) -> 0.7513555448 | C9: St Dev | D9: =_xlfn.STDEV.S(A8:A1681) -> 1.013660558 | E9: =getformula(D9) -> <-- =STDEV.S(A8:A1681) | I9: 0.5 | J9: 326
A10: 0.2809715594 | I10: 1 | J10: 248
A11: -1.245141411 | I11: 1.5 | J11: 141
A12: 0.5180626913 | I12: 2 | J12: 84
A13: -0.7878298609 | I13: 2.5 | J13: 33
A14: -0.9162353222 | I14: 3 | J14: 11
A15: -1.378608248
A16: 0.511198893
A17: -0.03150549062
A18: 0.4049063454
A19: 0.02651181087 | D19: =100*EXP(0.1) -> 110.5170918
A20: 0.2004428388
A21: 1.527281065
A22: -1.30535323
A23: -1.405509249
A24: -0.6773467302
A25: 0.98590407
A26: -1.120138448
A27: -0.05472064932
A28: 2.440749899
A29: 1.529164296
A30: -0.9245399319
A31: -0.8077727203
A32: -0.1525083593
A33: 1.466150701
A34: -0.08468063208
A35: -0.1432957306
A36: 1.66162387
A37: -0.5293895082
A38: 0.02886373476
A39: -0.2942098023
A40: 0.8952836386
A41: 0.6621028599
A42: -0.1496588486
A43: 0.7184486964
A44: -0.5485694455
A45: -0.07114322806
A46: -0.06965875331
A47: 1.668215353
A48: 0.4826097526
A49: -1.975549254
A50: -2.059541976
A51: 2.431918679
A52: 0.7299271148
A53: -0.6033646459
A54: 0.3363417123
A55: -1.719172305
A56: 0.3616376321
A57: 1.221056964
A58: -0.302022843
A59: 0.9160810245
A60: 0.6465103234
A61: -0.7147230643
A62: -0.3373609652
A63: 1.328095494
A64: 0.1117630896
A65: 1.056965937
A66: 0.1125349931
A67: -0.648450523
A68: 1.044317775
A69: -0.6132999679
A70: 1.555974648
A71: -0.5856061762
A72: 0.3403081342
A73: =_xlfn.NORM.S.INV(RAND()) -> -1.1194347
A74: 0.1616114943
A75: 1.052155289
A76: -0.04761866004
A77: 0.7253223421
A78: -1.003738809
A79: -0.04601579508
A80: 1.08772393
A81: 1.630781159
A82: 0.325671647
A83: -0.4959163994
A84: 0.6243493956
A85: 0.2460239253
A86: 0.8065455429
A87: 0.8831560791
A88: 0.1463846383
A89: 0.5013362528
A90: -0.4956955814
A91: 0.5046582973
A92: -1.131864858
A93: 1.511524855
A94: 0.4325817707
A95: -0.5783030256
A96: 0.6319950958
A97: -0.3136795395
A98: 0.07119073521
A99: 0.230747611
A100: 0.1554028854
A101: -1.616418988
A102: -1.416106702
A103: 0.06674329587
A104: 0.4950132133
A105: -0.5845048164
A106: -1.389208337
A107: -0.7497285922
A108: -0.5842867654
A109: 0.9074866877
A110: -0.1905650546
A111: -0.2276555204
A112: -0.2517380029
A113: 2.437330611
A114: -0.5364181967
A115: -0.1994025159
A116: 0.660753571
A117: -1.771163483
A118: 0.1147995355
A119: 0.4360983099
A120: -0.2191792622
A121: -1.362364868
A122: -1.172273523
A123: 0.416110432
A124: -0.4079755817
A125: -1.01084589
A126: -0.5253670098
A127: 1.103642744
A128: -0.03023982922
A129: 0.4351632781
A130: 1.048469441
A131: 0.4470898755
A132: 1.126122451
A133: -0.5567830098
A134: -0.5635498093
A135: -0.8260800597
A136: -0.01110905107
A137: =_xlfn.NORM.S.INV(RAND()) -> -1.136572682
A138: -1.27948096
A139: -2.076481683
A140: -0.5337025519
A141: 0.1524798443
A142: -1.626854993
A143: -0.434834297
A144: -0.9852259373
A145: 0.7327344599
A146: 1.386764221
A147: -1.707293096
A148: 0.4681509795
A149: 0.128269396
A150: -0.6276717077
A151: -0.4525476851
A152: 1.925429667
A153: -0.675067885
A154: -0.8208946415
A155: 0.857105193
A156: 1.112933467
A157: 0.7284585027
A158: -1.001676033
A159: 0.4342721846
A160: 0.07857138991
A161: 0.9944375981
A162: 0.8723072518
A163: 0.4389897533
A164: 2.806888279
A165: 0.4919862409
A166: 0.6303496062
A167: 0.9340607933
A168: 1.015444003
A169: -1.286112472
A170: 0.7051260738
A171: -1.544552498
A172: 2.279569908
A173: 0.5497088121
A174: 0.7248243062
A175: -1.276805573
A176: 1.550514926
A177: -1.968985191
A178: 0.6977512113
A179: -0.9713794537
A180: -0.08628632467
A181: -1.252553047
A182: 1.567805189
A183: -0.2670958084
A184: 0.8660674373
A185: 1.6118979
A186: 0.8321938818
A187: 0.4252294002
A188: 0.006898321658
A189: 0.5011682703
A190: 0.04568896941
A191: 0.7510798733
A192: -0.7069335299
A193: 0.3489634088
A194: -1.672462921
A195: -1.640556903
A196: 1.625437743
A197: -0.5888483477
A198: 0.01292838345
A199: 1.589899077
A200: 0.7063013369
... 1481 more rows

Sheet Sheet4
A1: Current wealth | B1: 1000000
A2: Rf | B2: 0.06
A3: Risky Investment: | F3: =getformula(E10) -> <-- =NORM.S.INV(RAND())
A4: Expected annual return | B4: 0.08 | E4: =getformula(D10) -> <-- =B10-C10
A5: St Dev | B5: 0.2 | H5: =getformula(F10) -> <-- =EXP($B$4+E10*$B$5)
A6: Weight in risky asset | B6: 0.7 | D6: =getformula(C10) -> <-- =$B$6*B10
A7: Annual withdrawal | B7: 150000 | H7: =getformula(G10) -> <-- =C10*F10+D10*EXP($B$2)
A9: Year | B9: Wealth at beg of year | C9: Invested in risky asset | D9: invested in Rf | E9: Random number, normally distributed | F9: 1+risky return | G9: Wealth at the end of year | H9: withdrawal | I9: left at end of year 10
A10: 1 | B10: =B1 -> 1000000 | C10: =$B$6*B10 -> 700000 | D10: =B10-C10 -> 300000 | E10: =_xlfn.NORM.S.INV(RAND()) -> 1.826634177 | F10: =EXP($B$4+E10*$B$5) -> 1.561000303 | G10: =C10*F10+D10*EXP($B$2) -> 1411251.176 | H10: =$B$7 -> 150000
A11: 2 | B11: =G10-H10 -> 1261251.176 | C11: =$B$6*B11 -> 882875.823 | D11: =B11-C11 -> 378375.3527 | E11: =_xlfn.NORM.S.INV(RAND()) -> 0.9114479787 | F11: =EXP($B$4+E11*$B$5) -> 1.299902934 | G11: =C11*F11+D11*EXP($B$2) -> 1549425.651 | H11: =$B$7 -> 150000 | L11: Simulation | M11: =I19 -> 526748.6266
A12: 3 | B12: =G11-H11 -> 1399425.651 | C12: 979597.9556 | D12: 419827.6952 | E12: -0.497152899 | F12: 0.9807569772 | G12: 1406535.92 | H12: 150000 | L12: 1 | M12: -623680.8183
A13: 4 | B13: 1256535.92 | C13: 879575.1439 | D13: 376960.7759 | E13: -0.5230386405 | F13: 0.9756925737 | G13: 1258465.664 | H13: 150000 | L13: 2 | M13: -303667.3543 | O13: Average | P13: =AVERAGE(M12:M111) -> 86241.14614 | Q13: =getformula(P13) -> <-- =AVERAGE(M12:M111)
A14: 5 | B14: 1108465.664 | C14: 775925.9651 | D14: 332539.6993 | E14: 0.3639415023 | F14: 1.165078306 | G14: 1257117.315 | H14: 150000 | L14: 3 | M14: 20285.42413 | O14: Sigma | P14: =_xlfn.STDEV.S(M12:M111) -> 680522.8775 | Q14: =getformula(P14) -> <-- =STDEV.S(M12:M111)
A15: 6 | B15: 1107117.315 | C15: 774982.1206 | D15: 332135.1946 | E15: 0.2966685714 | F15: 1.149507643 | G15: 1243521.159 | H15: 150000 | L15: 4 | M15: -76087.12283 | O15: Probability of (-) cash | P15: =COUNTIF(M12:M111,"<0")/COUNT(M12:M111) -> 0.59 | Q15: <-- =COUNTIF(M12:M111,"<0")/COUNT(M12:M111)
A16: 7 | B16: 1093521.159 | C16: 765464.8112 | D16: 328056.3477 | E16: -0.3113732727 | F16: 1.017883372 | G16: 1127496.122 | H16: 150000 | L16: 5 | M16: -396335.9069
A17: 8 | B17: 977496.1223 | C17: 684247.2856 | D17: 293248.8367 | E17: -0.4925349078 | F17: 0.981663221 | G17: 983082.7264 | H17: 150000 | L17: 6 | M17: -307211.9142
A18: 9 | B18: 833082.7264 | C18: 583157.9085 | D18: 249924.8179 | E18: -0.5903949469 | F18: 0.9626368998 | G18: 826748.6266 | H18: 150000 | L18: 7 | M18: 57659.38716
A19: 10 | B19: 676748.6266 | C19: 473724.0386 | D19: 203024.588 | E19: 0.3567970378 | F19: 1.163414723 | G19: 766716.4486 | H19: 150000 | I19: =B19-H19 -> 526748.6266 | L19: 8 | M19: -204819.4201
L20: 9 | M20: 787545.0633
L21: 10 | M21: -288418.3112
L22: 11 | M22: 85384.00384
L23: 12 | M23: -68522.34489
L24: 13 | M24: -135975.8749
L25: 14 | M25: 162019.1372
L26: 15 | M26: 478096.843
L27: 16 | M27: -186087.2469
L28: 17 | M28: -208985.0271
L29: 18 | M29: 662172.8658
L30: 19 | M30: -862846.5698
L31: 20 | M31: -197345.3624
L32: 21 | M32: 1132915.631
L33: 22 | M33: 395014.0738
L34: 23 | M34: 135397.7347
L35: 24 | M35: 975337.107
L36: 25 | M36: 1041245.889
L37: 26 | M37: -326518.8998
L38: 27 | M38: -104677.3981
L39: 28 | M39: -314482.1255
L40: 29 | M40: -466447.8442
L41: 30 | M41: 202839.6893
L42: 31 | M42: -610841.1934
L43: 32 | M43: 541291.0586
L44: 33 | M44: -261815.772
L45: 34 | M45: -869105.6844
L46: 35 | M46: -786572.8939
L47: 36 | M47: -80576.87984
L48: 37 | M48: -235610.3087
L49: 38 | M49: 1351251.633
L50: 39 | M50: 736606.7202
L51: 40 | M51: -145382.4951
L52: 41 | M52: 85822.46421
L53: 42 | M53: -672810.1561
L54: 43 | M54: 755211.3381
L55: 44 | M55: -173787.6918
L56: 45 | M56: -51963.77899
L57: 46 | M57: -95501.38953
L58: 47 | M58: 2772657.475
L59: 48 | M59: -301416.3358
L60: 49 | M60: 598681.3688
L61: 50 | M61: 22142.76771
L62: 51 | M62: -271757.7323
L63: 52 | M63: 576953.6411
L64: 53 | M64: -156540.9033
L65: 54 | M65: -524712.4263
L66: 55 | M66: -371601.8086
L67: 56 | M67: -355339.0446
L68: 57 | M68: -423012.7098
L69: 58 | M69: 231759.5391
L70: 59 | M70: 11270.66154
L71: 60 | M71: -692690.6911
L72: 61 | M72: -485264.2641
L73: 62 | M73: -528560.1481
L74: 63 | M74: -149667.6778
L75: 64 | M75: 1615758.719
L76: 65 | M76: -137769.0251
L77: 66 | M77: 1330875.685
L78: 67 | M78: -445674.5919
L79: 68 | M79: -515170.5764
L80: 69 | M80: -79135.81671
L81: 70 | M81: 1081103.854
L82: 71 | M82: 563530.0437
L83: 72 | M83: -252725.8654
L84: 73 | M84: -670912.0073
L85: 74 | M85: -52872.0723
L86: 75 | M86: 129113.5075
L87: 76 | M87: 401627.6905
L88: 77 | M88: -481832.9198
L89: 78 | M89: 444944.2124
L90: 79 | M90: 727413.0059
L91: 80 | M91: -527868.4284
L92: 81 | M92: 1284949.812
L93: 82 | M93: -51209.42995
L94: 83 | M94: -137643.5388
L95: 84 | M95: 2990132.673
L96: 85 | M96: 1335283.423
L97: 86 | M97: -497576.3196
L98: 87 | M98: 437550.7811
L99: 88 | M99: -395780.2609
L100: 89 | M100: 31400.1773
L101: 90 | M101: -96704.66494
L102: 91 | M102: 79939.07928
L103: 92 | M103: -287321.6991
L104: 93 | M104: -180010.0179
L105: 94 | M105: -144870.221
L106: 95 | M106: -124764.6047
L107: 96 | M107: 379060.8394
L108: 97 | M108: -567627.6335
L109: 98 | M109: 1233145.169
L110: 99 | M110: 48835.7643
L111: 100 | M111: -346000.1184
